[Event "Prague Open 2025"]
[Site "Prague"]
[Date "2025.01.14"]
[Round "6.11"]
[White "Shapovalovi, Vasiko"]
[Black "Golis, Wiktor"]
[Result "1-0"]
[Annotator "TA"]
[ECO "A13"]
[WhiteElo "2078"]
[BlackElo "2314"]
[PlyCount "85"]
[EventDate "2025.01.07"]
[EventType "swiss"]
[EventCountry "CZE"]
[SourceTitle "playchess.com"]
[Source "ChessBase"]
[SourceQuality "1"]
[TimeControl "40/5400+30:1800+30"]

{[%evp 19,85,24,44,21,38,39,31,27,29,0,12,0,0,14,1,15,100,98,96,103,93,99,91,100,108,119,128,112,153,81,79,25,32,32,30,22,32,34,71,43,55,25,30,20,20,20,21,0,4,0,0,0,7,3,0,0,92,91,100,99,169,162,263,266,9987,8977,5093,5093]} 1. c4 {[%emt 0:02:11]} e6 {[%emt 0:00:03]} 2. Nf3 {[%emt 0:00:11]} d5 {[%emt 0:00:05]} 3. e3 {[%emt 0:00:05]} Nf6 {[%emt 0:00:05]} 4. b3 {[%emt 0:00:07]} c5 {[%emt 0:00:20]} 5. cxd5 {[%emt 0:00:44]} exd5 {[%emt 0:00:06]} 6. Bb2 {[%emt 0:00:26]} Nc6 {[%emt 0:00:12]} 7. Be2 {[%emt 0:01:52]} Bd6 {[%emt 0:01:01]} 8. O-O {[%emt 0:00:33]} O-O {[%emt 0:00:05]} 9. d4 {[%emt 0:00:03]} Re8 {[%emt 0:05:02]} 10. Nc3 {[%emt 0:01:48]} a6 {[%emt 0:05:03]} 11. Rc1 {[%emt 0:06:47]} cxd4 $1 {[%emt 0:01:11]} 12. Nxd4 {[%emt 0:00:52]} Nxd4 {[%emt 0:00:29]} 13. Qxd4 {[%emt 0:00:33]} Be5 {[%emt 0:00:12]} 14. Qh4 {[%emt 0:09:46]} Be6 {[%emt 0:08:35]} 15. Na4 {[%emt 0:04:17]} Bxb2 {[%emt 0:07:53]} 16. Nxb2 {[%emt 0:00:06]} Qa5 {[%emt 0:00:08] Prevents Qb4.} 17. Qd4 {[%emt 0:08:58] Prevents Qd2.} Qxa2 {[%emt 0:10:58]} (17... Qa3 $11) 18. Ra1 $1 $16 {[%emt 0:01:51]} Qxb3 {[%emt 0:00:25]} 19. Bd1 $1 {[%emt 0:00:15]} Qb5 {[%emt 0:00:54] ...Rec8 is the strong threat.} 20. Ba4 {[%emt 0:00:04]} Qe2 {[%emt 0:00:06]} 21. Rfe1 {[%emt 0:26:47]} Qh5 {[%emt 0:02:32]} 22. Bxe8 {[%emt 0:00:06]} Rxe8 {[%emt 0:00:03]} 23. Nd3 {[%emt 0:00:22]} Bd7 {[%emt 0:18:35]} 24. Qb6 {[%emt 0:08:02]} (24. Nc5 $142 $1) 24... Bb5 {[%emt 0:14:38]} 25. Nf4 {[%emt 0:05:35]} (25. Nc5 $1 $16) 25... Qe5 {[%emt 0:00:39]} 26. Rad1 {[%emt 0:01:08][%mdl 1024] White has compensation.} (26. Qxb7 g5 27. Nh3 Ng4 $11) 26... g5 {[%emt 0:11:06]} 27. Ne2 {[%emt 0:01:13] And now Nd4 would win.} Ng4 {[%emt 0:02:09][%cal Bf6g4,Bg4h6,Bh6f5][%mdl 32]} 28. Ng3 {[%emt 0:00:57][%cal Of2f3]} (28. Qxb7 $2 {gets mated.} Qxh2+ 29. Kf1 Qh1#) 28... Bc6 {[%emt 0:01:45]} 29. Qb1 {[%emt 0:06:47]} Re6 {[%emt 0:04:38][%cal Oh7h5]} 30. Qf5 {[%emt 0:05:54]} Nh6 {[%emt 0:02:16]} 31. Qxe5 {[%emt 0:01:20]} Rxe5 {[%emt 0:00:01]} 32. Ra1 {[%emt 0:00:11]} Nf5 {[%emt 0:01:07]} 33. Ne2 {[%emt 0:01:42]} h5 {[%emt 0:01:07]} 34. Nc3 {[%emt 0:02:08]} d4 {[%emt 0:02:40]} 35. exd4 {[%emt 0:00:35]} Rxe1+ {[%emt 0:00:02]} 36. Rxe1 {[%emt 0:00:04]} Nxd4 {[%emt 0:00:05]} 37. Ne4 {[%emt 0:02:48]} Bxe4 {[%emt 0:02:07]} (37... a5 $11 {remains equal.}) 38. Rxe4 $11 {[%emt 0:00:04] KR-KN} Ne6 {[%emt 0:00:03]} 39. h4 $1 {[%emt 0:01:24]} Kg7 {[%emt 0:01:01]} (39... Kf8 $16 40. Kf1 gxh4 41. Rxh4 Ng7) 40. hxg5 $18 {[%emt 0:00:20]} Kg6 {[%emt 0:00:27]} (40... b5 $142 41. f4 a5) 41. f4 {[%emt 0:30:19]} Kf5 $2 {[%emt 0:30:26] [#]} (41... b5 42. Kf2 Nc5) 42. Re5+ $1 {[%emt 0:00:10]} (42. Rb4 Nxf4 43. Rxb7 Kg6 $18) 42... Kxf4 {[%emt 0:00:23] [#]} 43. Rxe6 $1 {[%emt 0:00:03][%mdl 512]} 1-0

[Event "Prague Open 2025"]
[Site "Prague"]
[Date "2025.01.14"]
[Round "6.12"]
[White "Rybackova, Lucie"]
[Black "Pourquet, Matthieu"]
[Result "0-1"]
[Annotator "TA"]
[ECO "A00"]
[WhiteElo "2077"]
[BlackElo "2262"]
[PlyCount "56"]
[EventDate "2025.01.07"]
[EventType "swiss"]
[EventCountry "CZE"]
[SourceTitle "playchess.com"]
[Source "ChessBase"]
[SourceQuality "1"]
[TimeControl "40/5400+30:1800+30"]

{[%evp 16,56,-12,-26,-15,-19,-13,-10,0,-8,0,-6,0,-5,-10,-26,-32,-34,-32,-168,-185,-182,-182,-202,-185,-209,-191,-206,-210,-222,-181,-281,-224,-266,-183,-228,-166,-371,-395,-396,-399,-452,-443]} 1. g3 {[%emt 0:00:03]} c5 {[%emt 0:04:07]} 2. Bg2 {[%emt 0:00:18]} g6 {[%emt 0:01:32]} 3. Nf3 {[%emt 0:01:20]} Bg7 {[%emt 0:00:06]} 4. O-O {[%emt 0:01:21]} Nc6 {[%emt 0:00:09]} 5. c4 {[%emt 0:00:26]} e5 {[%emt 0:00:06]} 6. e4 {[%emt 0:02:41]} Nge7 {[%emt 0:00:18]} 7. Nc3 {[%emt 0:00:10]} O-O {[%emt 0:01:10]} 8. d3 {[%emt 0:00:57]} d6 {[%emt 0:00:18]} 9. Ne1 {[%emt 0:06:14]} a6 {[%emt 0:01:56]} 10. Nc2 {[%emt 0:05:00]} Rb8 {[%emt 0:01:30]} 11. a4 {[%emt 0:03:12]} Be6 {[%emt 0:02:35]} 12. Rb1 {[%emt 0:24:26]} a5 {[%emt 0:03:30]} 13. Ne3 {[%emt 0:10:32]} Nb4 {[%emt 0:04:04]} 14. Ned5 {[%emt 0:04:52]} Nexd5 {[%emt 0:05:09]} 15. cxd5 {[%emt 0:02:33]} Bd7 {[%emt 0:00:17]} 16. f4 {[%emt 0:01:21]} Qb6 {[%emt 0:18:08] ...c4+ would now be deadly.} 17. fxe5 {[%emt 0:09:52] [#]} ({White should play} 17. Kh1 $15) 17... c4+ $1 $19 {[%emt 0:04:43]} 18. Kh1 {[%emt 0:07:44]} (18. d4 $2 dxe5 19. Nb5 Rbc8 $19 (19... exd4 20. Kh1 $19)) 18... Nxd3 {[%emt 0:00:37]} ({Weaker is} 18... cxd3 19. exd6 Qxd6 20. Bf4 $11) 19. Qe2 {[%emt 0:02:51]} Nxe5 {[%emt 0:00:35]} (19... dxe5 20. Bd2 $17) 20. Bf4 {[%emt 0:03:08]} Rbc8 {[%emt 0:01:55]} 21. Be3 {[%emt 0:03:38]} Qb4 {[%emt 0:05:51]} 22. Qc2 {[%emt 0:00:32]} Nd3 {[%emt 0:04:29]} 23. Bd2 {[%emt 0:01:56]} (23. h4 $142) 23... Qc5 {[%emt 0:03:05]} 24. h3 {[%emt 0:04:11]} h5 {[%emt 0:01:30]} 25. Ne2 {[%emt 0:02:12]} Nb4 {[%emt 0:05:33]} 26. Bxb4 $2 {[%emt 0:01:06]} (26. Qd1) 26... axb4 {[%emt 0:00:59]} ({Don't do} 26... Qxb4 27. Nc3 $19) 27. b3 {[%emt 0:00:43]} b5 {[%emt 0:03:07]} 28. axb5 {[%emt 0:00:34]} Bxb5 {[%emt 0:04:34]} 0-1

[Event "Prague Open 2025"]
[Site "Prague"]
[Date "2025.01.14"]
[Round "6.13"]
[White "Chan, Kim Yew"]
[Black "Mensing, Adrian"]
[Result "1-0"]
[Annotator "TA"]
[ECO "A04"]
[WhiteElo "2258"]
[BlackElo "2028"]
[PlyCount "37"]
[EventDate "2025.01.07"]
[EventType "swiss"]
[EventCountry "CZE"]
[SourceTitle "playchess.com"]
[Source "ChessBase"]
[SourceQuality "1"]
[TimeControl "40/5400+30:1800+30"]

{[%evp 9,37,48,77,75,142,65,74,54,83,81,166,160,152,150,144,157,172,176,428,422,631,644,748,743,780,783,675,400,391,388]} 1. Nf3 {[%emt 0:01:34]} g6 {[%emt 0:01:39]} 2. e4 {[%emt 0:00:11][%cal Be2e4,Be4e5][%mdl 32]} Bg7 {[%emt 0:00:11]} 3. d4 {[%emt 0:00:02]} d6 {[%emt 0:00:15][%cal Bd7d6,Bd6d5][%mdl 32]} 4. Be2 {[%emt 0:00:19]} c6 {[%emt 0:00:22]} 5. O-O {[%emt 0:01:18]} d5 {[%emt 0:00:36]} 6. e5 {[%emt 0:03:18]} c5 {[%emt 0:00:48]} 7. c3 {[%emt 0:04:55]} ({Better is} 7. Nc3 $16) 7... Nc6 $14 {[%emt 0:00:17]} 8. h3 {[%emt 0:00:36]} f6 {[%emt 0:20:36][%cal Rf6e5,Bf7f6,Bf6f5][%mdl 32]} 9. Bb5 {[%emt 0:09:09]} (9. dxc5 fxe5 10. Na3 Nh6 $11) 9... a6 {[%emt 0:04:48]} (9... fxe5 $16 10. Nxe5 Qb6) 10. Bxc6+ $18 {[%emt 0:01:28]} bxc6 {[%emt 0:00:03] Black is weak on the dark squares} 11. Re1 {[%emt 0:00:46]} ({Don't play} 11. dxc5 $6 fxe5 12. Re1 e4 $11) 11... cxd4 {[%emt 0:05:25]} 12. cxd4 {[%emt 0:01:07][%cal Bc3d4,Bd4c5,Bc5c6][%mdl 32]} f5 {[%emt 0:14:08]} 13. Nc3 {[%emt 0:02:33]} c5 $2 {[%emt 0:05:08]} (13... e6 {keeps fighting.} 14. Na4 h6) 14. dxc5 {[%emt 0:02:21]} Bb7 {[%emt 0:00:41]} (14... e6 $142 15. Qa4+ Qd7) 15. Nd4 {[%emt 0:07:48]} Kf7 {[%emt 0:13:36] Dodges Ne6} 16. Qb3 {[%emt 0:07:20]} Rb8 {[%emt 0:00:40]} 17. c6 {[%emt 0:01:06]} Ba8 {[%emt 0:00:01]} 18. Qxd5+ {[%emt 0:01:13]} Qxd5 {[%emt 0:00:11]} 19. Nxd5 {[%emt 0:00:03]} 1-0

[Event "Prague Open 2025"]
[Site "Prague"]
[Date "2025.01.14"]
[Round "6.14"]
[White "Filindash, Nikita"]
[Black "Mueer, Sebastian"]
[Result "1/2-1/2"]
[Annotator "TA"]
[ECO "A40"]
[WhiteElo "2072"]
[BlackElo "2192"]
[PlyCount "80"]
[EventDate "2025.01.07"]
[EventType "swiss"]
[EventCountry "CZE"]
[SourceTitle "playchess.com"]
[Source "ChessBase"]
[SourceQuality "1"]
[TimeControl "40/5400+30:1800+30"]

{[%evp 15,80,5,14,0,-15,-1,13,-9,7,-29,-9,-4,4,-13,0,-38,-54,-58,-55,-63,-63,-75,-52,-71,-69,-75,-75,-75,-75,-77,-75,-70,-56,-57,-43,-52,-39,-51,-44,-90,-26,-33,-8,-39,-23,-32,0,0,0,0,0,-16,93,98,87,110,110,110,112,112,110,75,108,0,132,132,133]} 1. d4 {[%emt 0:00:03]} e6 {[%emt 0:10:50]} 2. c4 {[%emt 0:00:20]} b6 {[%emt 0:00:36]} 3. Nc3 {[%emt 0:00:34]} Bb4 {[%emt 0:01:10]} 4. Qc2 {[%emt 0:04:37]} Bb7 {[%emt 0:08:24]} 5. Nf3 {[%emt 0:03:32]} Nf6 {[%emt 0:01:04]} 6. Bg5 {[%emt 0:02:23][%cal Bc1g5,Bg5h4,Bh4g3][%mdl 32]} h6 {[%emt 0:02:51]} 7. Bh4 {[%emt 0:01:42]} g5 {[%emt 0:00:13]} 8. Bg3 {[%emt 0:00:27]} Ne4 {[%emt 0:00:28]} 9. Nd2 {[%emt 0:04:10]} Bxc3 {[%emt 0:06:36]} 10. bxc3 {[%emt 0:00:19]} f5 {[%emt 0:00:59]} 11. e3 {[%emt 0:05:44]} d6 {[%emt 0:06:02]} 12. f3 {[%emt 0:13:57]} Nxg3 {[%emt 0:10:08]} 13. hxg3 {[%emt 0:00:06]} Qf6 {[%emt 0:01:53]} 14. Bd3 {[%emt 0:05:33]} Nd7 {[%emt 0:03:19]} 15. O-O-O {[%emt 0:11:32]} O-O-O {[%emt 0:01:23]} 16. Kb1 {[%emt 0:05:29]} Kb8 {[%emt 0:00:10]} 17. Rde1 {[%emt 0:01:09]} h5 {[%emt 0:03:37]} 18. Rh2 {[%emt 0:09:00]} h4 {[%emt 0:03:20]} 19. e4 {[%emt 0:02:52]} f4 {[%emt 0:03:26]} 20. g4 {[%emt 0:01:13]} e5 {[%emt 0:00:19]} 21. Qb2 {[%emt 0:01:17]} Rh6 {[%emt 0:01:39]} 22. Rh3 {[%emt 0:00:36]} Nf8 {[%emt 0:07:45]} 23. Ka1 {[%emt 0:01:26]} Ne6 {[%emt 0:00:21][%cal Re5d4]} 24. Nb3 {[%emt 0:00:27]} Qg7 {[%emt 0:03:40]} 25. Rb1 {[%emt 0:04:43]} Rh7 {[%emt 0:04:17]} 26. a3 {[%emt 0:09:54]} Qd7 {[%emt 0:02:00]} 27. Ka2 {[%emt 0:02:21]} (27. d5 $15 Nc5 28. Nxc5 dxc5 29. Bc2) 27... Qa4 {[%emt 0:00:35]} ({Better is} 27... Rdh8 $17) 28. d5 $11 {[%emt 0:02:23]} Nc5 $1 {[%emt 0:05:09]} 29. Nxc5 {[%emt 0:00:21]} dxc5 {[%emt 0:00:07]} 30. Qb5 {[%emt 0:01:17]} Qxb5 {[%emt 0:05:33]} 31. cxb5 {[%emt 0:00:08]} c6 {[%emt 0:01:02]} 32. c4 {[%emt 0:00:09]} cxb5 {[%emt 0:00:13]} 33. cxb5 {[%emt 0:01:50] [#]} c4 {[%emt 0:03:46]} 34. Bxc4 $16 {[%emt 0:00:58]} Rc8 {[%emt 0:00:01]} 35. Rb4 {[%emt 0:01:08]} Rc5 {[%emt 0:01:15]} 36. Rh1 {[%emt 0:00:15]} Kc7 {[%emt 0:00:20]} 37. Kb3 {[%emt 0:00:47]} Kd6 {[%emt 0:00:21]} 38. Kb2 {[%emt 0:00:56]} Bc8 {[%emt 0:00:14]} 39. Kb3 {[%emt 0:00:30]} (39. a4 $16) 39... Bd7 {[%emt 0:00:30]} (39... Bb7 $1 $11 {keeps the balance.}) 40. a4 {[%emt 0:00:21]} Rc8 {[%emt 0:01:04]} 1/2-1/2

[Event "Prague Open 2025"]
[Site "Prague"]
[Date "2025.01.14"]
[Round "6.15"]
[White "Fizer, Marek"]
[Black "Taborsky, Rostislav"]
[Result "1/2-1/2"]
[Annotator "TA"]
[ECO "C02"]
[WhiteElo "2155"]
[BlackElo "2069"]
[PlyCount "42"]
[EventDate "2025.01.07"]
[EventType "swiss"]
[EventCountry "CZE"]
[SourceTitle "playchess.com"]
[Source "ChessBase"]
[SourceQuality "1"]
[TimeControl "40/5400+30:1800+30"]

{[%evp 11,42,-6,-8,-24,-18,-17,-32,-29,-14,-43,-8,0,-13,-23,0,0,-35,-114,-100,-128,-100,-150,-154,-140,-142,-148,-146,-150,0,-143,0,-133,0]} 1. e4 {[%emt 0:00:03]} e6 {[%emt 0:12:05]} 2. d4 {[%emt 0:00:26]} d5 {[%emt 0:00:34]} 3. e5 {[%emt 0:00:16]} c5 {[%emt 0:00:11]} 4. c3 {[%emt 0:00:09]} Nc6 {[%emt 0:00:06]} 5. Nf3 {[%emt 0:00:16]} Qb6 {[%emt 0:00:07]} 6. Bd3 {[%emt 0:00:18]} cxd4 {[%emt 0:00:06]} 7. O-O {[%emt 0:00:23]} Bd7 {[%emt 0:00:05]} 8. Re1 {[%emt 0:00:35]} Rc8 {[%emt 0:00:20]} 9. Nbd2 {[%emt 0:04:05]} Nge7 {[%emt 0:00:08]} 10. h4 {[%emt 0:00:41]} (10. cxd4 {is more complex.} Nxd4 11. Nxd4 Qxd4 12. Nf3) 10... a6 {[%emt 0:00:42]} 11. Nb3 {[%emt 0:02:00]} dxc3 {[%emt 0:00:28]} 12. bxc3 {[%emt 0:00:30]} Na5 {[%emt 0:03:16]} 13. Be3 {[%emt 0:16:06]} Qc7 {[%emt 0:01:44]} 14. Nc5 {[%emt 0:11:51]} (14. Nxa5 $15 Qxa5 15. Qb1) 14... Nf5 $17 {[%emt 0:11:58]} 15. Bxf5 {[%emt 0:17:19] Strongly threatening Nxd7.} Bxc5 {[%emt 0:00:19]} 16. Bc2 {[%emt 0:00:36]} (16. Bd3 $142) 16... Bxe3 {[%emt 0:09:57]} 17. Rxe3 {[%emt 0:00:36]} Nc4 {[%emt 0:00:46]} 18. Re2 {[%emt 0:09:58]} Na3 {[%emt 0:05:35]} 19. Re3 {[%emt 0:04:27]} Nc4 {[%emt 0:14:01]} 20. Re2 $1 {[%emt 0:00:58]} Na3 {[%emt 0:00:05]} 21. Re3 $1 {[%emt 0:00:27]} Nc4 {[%emt 0:15:02]} (21... Qd8 $17 22. Bd3 Nc4 (22... Rxc3 23. Bxh7 Rxe3 24. fxe3 $19) 23. Bxc4 Rxc4) 1/2-1/2

[Event "Prague Open 2025"]
[Site "Prague"]
[Date "2025.01.14"]
[Round "6.16"]
[White "Wilks, Simon"]
[Black "Adrian, Claude"]
[Result "1-0"]
[Annotator "TA"]
[ECO "C18"]
[WhiteElo "2069"]
[BlackElo "2151"]
[PlyCount "73"]
[EventDate "2025.01.07"]
[EventType "swiss"]
[EventCountry "CZE"]
[SourceTitle "playchess.com"]
[Source "ChessBase"]
[SourceQuality "1"]
[TimeControl "40/5400+30:1800+30"]

{[%evp 16,73,18,2,3,0,9,2,9,0,11,0,7,0,33,-41,15,-66,-36,-63,0,0,0,0,7,-39,150,155,141,124,145,155,120,133,276,206,205,206,679,678,1307,1269,1273,1258,1432,1414,1745,1767,1702,1726,1754,1591,29984,29985,5270,2102,29997,29992,29998,29999]} 1. e4 {[%emt 0:14:50]} e6 {[%emt 0:00:15]} 2. d4 {[%emt 0:00:13]} d5 {[%emt 0:00:06]} 3. Nc3 {[%emt 0:00:13]} Bb4 {[%emt 0:00:08]} 4. e5 {[%emt 0:01:26]} c5 {[%emt 0:00:13]} 5. a3 {[%emt 0:00:12]} Bxc3+ {[%emt 0:00:08]} 6. bxc3 {[%emt 0:00:04]} Qa5 {[%emt 0:00:22]} 7. Bd2 {[%emt 0:01:41]} Qa4 {[%emt 0:00:06]} 8. Qb1 {[%emt 0:04:51]} c4 {[%emt 0:00:32]} 9. h4 {[%emt 0:01:12]} Nc6 {[%emt 0:01:30]} 10. h5 {[%emt 0:04:52]} h6 {[%emt 0:00:41]} 11. Nf3 {[%emt 0:03:54]} Bd7 {[%emt 0:02:25]} 12. Be2 {[%emt 0:02:44]} (12. Qxb7 Rb8 13. Qc7 Nge7 $19) 12... O-O-O {[%emt 0:00:22]} 13. Nh4 {[%emt 0:01:11]} Nge7 {[%emt 0:02:09]} 14. g4 {[%emt 0:07:58]} g5 {[%emt 0:04:29]} 15. Ng2 {[%emt 0:02:57]} (15. hxg6 $14 fxg6 16. Ng2) 15... Rdf8 {[%emt 0:02:45]} ({Black should try} 15... f6 $15) 16. Qc1 {[%emt 0:05:25]} ({White should play} 16. f4 $11 gxf4 17. O-O (17. Bxf4 Qa5 $15) (17. Nxf4 f5 $14)) 16... f5 {[%emt 0:06:05]} 17. exf6 {[%emt 0:05:32]} Rxf6 {[%emt 0:08:50]} (17... Ng8 $1 $15) 18. f4 $11 {[%emt 0:03:22]} gxf4 {[%emt 0:01:49]} 19. Bxf4 {[%emt 0:02:05]} Qa5 {[%emt 0:03:14]} 20. Qe3 {[%emt 0:04:11]} (20. Qd2 $11) 20... Rhf8 $2 {[%emt 0:14:20] [#]} (20... e5 $1 $15 {stays ahead.} 21. dxe5 (21. Bxe5 $2 Nxe5 22. dxe5 d4 $17) 21... d4) 21. O-O $1 $36 {[%emt 0:04:21][%mdl 2048] Keeping Black busy.} (21. Bxh6 $2 {is the wrong capture.} Rxh6 22. O-O-O Qxa3+ 23. Kd2 Rhh8 $19) 21... Ng8 {[%emt 0:09:42]} 22. g5 {[%emt 0:19:58]} hxg5 {[%emt 0:01:49]} 23. Bxg5 {[%emt 0:00:58]} Rxf1+ {[%emt 0:05:44]} 24. Rxf1 {[%emt 0:01:42]} Rxf1+ {[%emt 0:03:24]} (24... Qxa3 $16 25. h6 Rxf1+ 26. Bxf1 Nxh6) 25. Bxf1 {[%emt 0:00:50]} Qxa3 {[%emt 0:00:13]} 26. Qf4 {[%emt 0:01:24] Against Qf8} (26. h6 Nxh6 27. Bxh6 b6 $18) 26... a5 $2 {[%emt 0:03:18]} (26... Be8) 27. Qf7 $18 {[%emt 0:00:44]} (27. h6 Nxh6 28. Bxh6 Qxc3 $11) 27... Qxc3 {[%emt 0:03:42]} 28. Qxg8+ {[%emt 0:00:17]} Kc7 {[%emt 0:00:03]} 29. Bf4+ {[%emt 0:00:54]} Kb6 {[%emt 0:00:26]} 30. h6 {[%emt 0:00:26]} a4 {[%emt 0:00:21][%cal Ba5a4,Ba4a3,Ba3a2][%mdl 32]} 31. h7 {[%emt 0:01:11]} a3 {[%emt 0:00:10]} 32. h8=Q {[%emt 0:00:31] Hoping for Qf8.} ({Weaker is} 32. h8=R a2 $18) 32... a2 {[%emt 0:00:09]} 33. Qf8 {[%emt 0:00:31]} Qb4 {[%emt 0:04:05] Dodges Qc5+} 34. Qxb4+ {[%emt 0:01:44]} Nxb4 {[%emt 0:00:05]} 35. Qf8 {[%emt 0:00:24] Qc5+ would kill now.} Nxc2 {[%emt 0:00:34]} 36. Qc5+ {[%emt 0:00:07]} Ka6 {[%emt 0:00:03]} 37. Bc7 {[%emt 0:00:10]} 1-0

[Event "Prague Open 2025"]
[Site "Prague"]
[Date "2025.01.14"]
[Round "6.17"]
[White "Tyomkyn, Mikhail"]
[Black "Skodras, Marios Konstantinos"]
[Result "1/2-1/2"]
[Annotator "TA"]
[ECO "A45"]
[WhiteElo "2143"]
[BlackElo "2013"]
[PlyCount "66"]
[EventDate "2025.01.07"]
[EventType "swiss"]
[EventCountry "CZE"]
[SourceTitle "playchess.com"]
[Source "ChessBase"]
[SourceQuality "1"]
[TimeControl "40/5400+30:1800+30"]

{[%evp 9,66,14,33,7,28,31,46,-49,-45,-43,-38,-58,-51,-50,-54,-61,-59,-71,-56,-75,-56,-112,-74,-77,-77,-82,-77,-82,-83,-80,-79,-92,-79,-77,-81,-87,-80,-89,-77,-84,-80,-112,-102,-107,-86,-89,-85,-108,-66,-75,-15,-13,0,0,0,0,0,0,0]} 1. d4 {[%emt 0:00:02]} Nf6 {[%emt 0:00:13]} 2. Bg5 {[%emt 0:00:05]} h6 {[%emt 0:05:28]} 3. Bxf6 {[%emt 0:00:17]} exf6 {[%emt 0:00:09]} 4. c4 {[%emt 0:00:16]} Bb4+ {[%emt 0:02:15]} 5. Nc3 {[%emt 0:00:21]} O-O {[%emt 0:03:32]} 6. Qb3 {[%emt 0:05:28]} Nc6 {[%emt 0:03:23][%cal Bb8c6,Bc6a5,Ba5c4,Bc4b6,Bb6d5][%mdl 32]} 7. e3 {[%emt 0:00:58]} Qe7 {[%emt 0:01:41]} 8. Nge2 {[%emt 0:04:25]} ({White should play} 8. Nf3 $14) 8... Na5 $15 {[%emt 0:04:39]} 9. Qc2 {[%emt 0:03:20]} Nxc4 {[%emt 0:04:24]} 10. a3 {[%emt 0:00:10]} Bxc3+ $1 {[%emt 0:03:22]} 11. Nxc3 {[%emt 0:07:36]} Nb6 {[%emt 0:01:16]} 12. a4 {[%emt 0:02:23] Strongly threatening a5.} a5 {[%emt 0:12:55]} 13. Nb5 {[%emt 0:01:10]} c6 {[%emt 0:06:09]} 14. Qc5 $1 {[%emt 0:03:12]} Nd5 {[%emt 0:12:30] aiming for ...Qxc5.} 15. Bc4 {[%emt 0:12:08]} (15. Qxe7 $1 $15 Nxe7 16. Nd6) 15... b6 {[%emt 0:05:35]} 16. Qxe7 {[%emt 0:05:00]} Nxe7 {[%emt 0:00:06]} 17. Nd6 {[%emt 0:00:27]} Ba6 {[%emt 0:00:14]} 18. b3 {[%emt 0:17:30]} Nc8 {[%emt 0:02:38]} 19. Nxc8 {[%emt 0:00:29]} Rfxc8 {[%emt 0:00:14]} 20. Kd2 {[%emt 0:00:42]} d5 {[%emt 0:01:46]} 21. Bxa6 {[%emt 0:00:06]} Rxa6 $17 {[%emt 0:00:01][%mdl 4096] Endgame KRR-KRR. Black is a pawn up.} 22. Rhc1 {[%emt 0:00:08]} Kf8 {[%emt 0:03:18]} 23. g4 {[%emt 0:03:04]} Ra7 {[%emt 0:01:00]} 24. Rc3 {[%emt 0:00:56]} Ke7 {[%emt 0:00:44]} 25. e4 {[%emt 0:02:01]} Rd7 {[%emt 0:12:47]} 26. Re1 {[%emt 0:03:10]} dxe4 {[%emt 0:00:34]} 27. Rxe4+ {[%emt 0:00:03]} Kd6 {[%emt 0:00:06]} 28. f3 {[%emt 0:01:04]} Rdc7 {[%emt 0:02:16]} 29. Rce3 {[%emt 0:03:38]} Rb8 {[%emt 0:00:52]} ({Black should try} 29... h5 $17 30. gxh5 Rh8) 30. Re8 $11 {[%emt 0:01:14]} Rcb7 {[%emt 0:00:17]} 31. R3e7 $1 {[%emt 0:01:34]} Rxe7 {[%emt 0:04:06]} 32. Rxb8 {[%emt 0:00:02]} Kc7 {[%emt 0:00:08]} 33. Rg8 {[%emt 0:03:58]} g6 {[%emt 0:00:35]} 1/2-1/2